[Event "*** Titled Tuesday Blitz"]
[Site "Chess.com"]
[Date "2020.04.14"]
[Round "9"]
[White "vizumatv4hoda"]
[Black "Sam_ChessMood"]
[Result "0-1"]
[WhiteElo "2767"]
[BlackElo "2917"]
[TimeControl "180+1"]
[EndTime "11:48:40 PDT"]
[Termination "Sam_ChessMood won by resignation"]

1. e4 {[%clk 0:03:00.9]} 1... c5 {[%clk 0:02:57]} 2. c3 {[%clk 0:03:00.7]} 2...
Nf6 {[%clk 0:02:53.1]} 3. e5 {[%clk 0:03:01.2]} 3... Nd5 {[%clk 0:02:53.5]} 4.
d4 {[%clk 0:03:02.1]} 4... cxd4 {[%clk 0:02:52.6]} 5. Nf3 {[%clk 0:03:01.3]}
5... Nc6 {[%clk 0:02:49.4]} 6. cxd4 {[%clk 0:03:01.6]} 6... d6 {[%clk
0:02:49.2]} 7. Bc4 {[%clk 0:03:00.4]} 7... e6 {[%clk 0:02:49.5]} 8. O-O {[%clk
0:02:59.2]} 8... Be7 {[%clk 0:02:49]} 9. Qe2 {[%clk 0:02:59]} 9... O-O {[%clk
0:02:48.5]} 10. Nc3 {[%clk 0:02:58.7]} 10... Nxc3 {[%clk 0:02:47.4]} 11. bxc3
{[%clk 0:02:59.6]} 11... dxe5 {[%clk 0:02:46.7]} 12. dxe5 {[%clk 0:03:00.5]}
12... Qc7 {[%clk 0:02:46.7]} 13. Bd3 {[%clk 0:02:59]} 13... Rd8 {[%clk
0:02:46.6]} 14. Re1 {[%clk 0:02:58.1]} 14... Bd7 {[%clk 0:02:44]} 15. Ng5 {[%clk
0:02:58]} 15... g6 {[%clk 0:02:16.1]} 16. Bf4 {[%clk 0:02:40.7]} 16... Be8
{[%clk 0:02:15.6]} 17. Rad1 {[%clk 0:02:40.3]} 17... Rd5 {[%clk 0:02:10.6]} 18.
h4 {[%clk 0:02:39.4]} 18... Rad8 {[%clk 0:02:07.9]} 19. c4 {[%clk 0:02:38.4]}
19... Rd4 {[%clk 0:02:00.3]} 20. Be4 {[%clk 0:02:38.7]} 20... Rxd1 {[%clk
0:01:47.7]} 21. Rxd1 {[%clk 0:02:39.6]} 21... Rxd1+ {[%clk 0:01:48.3]} 22. Qxd1
{[%clk 0:02:38.4]} 22... Qd7 {[%clk 0:01:45.3]} 23. Qxd7 {[%clk 0:02:22.4]}
23... Bxd7 {[%clk 0:01:45.4]} 24. Kf1 {[%clk 0:02:23.3]} 24... Na5 {[%clk
0:01:27.1]} 25. Ke2 {[%clk 0:02:09.7]} 25... Bc6 {[%clk 0:01:20.3]} 26. Bxc6
{[%clk 0:02:06.7]} 26... Nxc6 {[%clk 0:01:20.4]} 27. Kd3 {[%clk 0:02:07.4]}
27... Bxg5 {[%clk 0:01:14.1]} 28. hxg5 {[%clk 0:02:01.8]} 28... Kf8 {[%clk
0:01:11.1]} 29. c5 {[%clk 0:01:57.2]} 29... Ke7 {[%clk 0:01:07.7]} 30. Kc4
{[%clk 0:01:57.4]} 30... Kd7 {[%clk 0:01:07.8]} 31. a3 {[%clk 0:01:53.7]} 31...
Ne7 {[%clk 0:01:01.3]} 32. Kb5 {[%clk 0:01:49.4]} 32... Nd5 {[%clk 0:01:01]} 33.
Bd2 {[%clk 0:01:47.8]} 33... a6+ {[%clk 0:01:00.9]} 34. Kc4 {[%clk 0:01:46.3]}
34... Kc6 {[%clk 0:01:01.5]} 35. g4 {[%clk 0:01:37.4]} 35... Ne7 {[%clk
0:00:53.7]} 36. a4 {[%clk 0:01:37.5]} 36... Kd7 {[%clk 0:00:45.2]} 37. Be3
{[%clk 0:01:28.8]} 37... Nc6 {[%clk 0:00:44]} 38. Bd4 {[%clk 0:01:29.2]} 38...
Ke7 {[%clk 0:00:36.6]} 39. Bc3 {[%clk 0:01:28.5]} 39... Kf8 {[%clk 0:00:36.7]}
40. Bb2 {[%clk 0:01:25.2]} 40... Kg7 {[%clk 0:00:36.9]} 41. Bc3 {[%clk
0:01:19.2]} 41... h6 {[%clk 0:00:32.7]} 42. gxh6+ {[%clk 0:01:20.1]} 42... Kxh6
{[%clk 0:00:33]} 43. f4 {[%clk 0:01:19.4]} 43... Kg7 {[%clk 0:00:27.8]} 44. f5
{[%clk 0:01:09.4]} 44... gxf5 {[%clk 0:00:26.6]} 45. gxf5 {[%clk 0:01:06.7]}
45... Kh6 {[%clk 0:00:26.1]} 46. fxe6 {[%clk 0:00:50.4]} 46... fxe6 {[%clk
0:00:27]} 47. Kd3 {[%clk 0:00:51]} 47... Kg6 {[%clk 0:00:27.3]} 48. Ke4 {[%clk
0:00:51.2]} 48... Kg5 {[%clk 0:00:27.7]} 49. Be1 {[%clk 0:00:48.2]} 49... Kg4
{[%clk 0:00:27.2]} 50. Bf2 {[%clk 0:00:43.4]} 50... Nb8 {[%clk 0:00:26.4]} 51.
Be1 {[%clk 0:00:41.7]} 51... Nd7 {[%clk 0:00:26.1]} 52. Bf2 {[%clk 0:00:41.9]}
52... Nb8 {[%clk 0:00:21.4]} 53. Be1 {[%clk 0:00:41.8]} 53... Nc6 {[%clk
0:00:21.6]} 54. Bf2 {[%clk 0:00:38.9]} 54... Kg5 {[%clk 0:00:21.9]} 55. Be3+
{[%clk 0:00:38.5]} 55... Kg6 {[%clk 0:00:22.2]} 56. Bf2 {[%clk 0:00:38.8]} 56...
Kf7 {[%clk 0:00:22.5]} 57. Be3 {[%clk 0:00:37.6]} 57... Ke7 {[%clk 0:00:22.8]}
58. Bf2 {[%clk 0:00:37]} 58... Kd7 {[%clk 0:00:23.3]} 59. Bd4 {[%clk 0:00:30.9]}
59... Nb4 {[%clk 0:00:21.4]} 60. Be3 {[%clk 0:00:28.8]} 60... Kc6 {[%clk
0:00:21.7]} 61. Bf2 {[%clk 0:00:28.2]} 61... Nd5 {[%clk 0:00:19]} 62. Kd4 {[%clk
0:00:26.6]} 62... Ne7 {[%clk 0:00:18.9]} 63. Kc4 {[%clk 0:00:26.3]} 63... Nf5
{[%clk 0:00:19.2]} 64. Be1 {[%clk 0:00:23.7]} 64... Ne3+ {[%clk 0:00:18.2]} 65.
Kd3 {[%clk 0:00:24.1]} 65... Ng4 {[%clk 0:00:18.1]} 66. Kd4 {[%clk 0:00:22.5]}
66... Nh6 {[%clk 0:00:18.3]} 67. Kc4 {[%clk 0:00:22.6]} 67... Nf7 {[%clk
0:00:18.6]} 68. Bg3 {[%clk 0:00:20]} 68... Kd7 {[%clk 0:00:17.6]} 69. Bf4 {[%clk
0:00:19.1]} 69... Nh8 {[%clk 0:00:17.2]} 70. Bg5 {[%clk 0:00:17.8]} 70... Ng6
{[%clk 0:00:17.4]} 71. Bf6 {[%clk 0:00:17]} 71... Kc6 {[%clk 0:00:17.7]} 72. Kd4
{[%clk 0:00:14.8]} 72... Nf4 {[%clk 0:00:17.8]} 73. Be7 {[%clk 0:00:12.6]} 73...
Nd5 {[%clk 0:00:17.3]} 74. Bd6 {[%clk 0:00:12]} 74... Nb4 {[%clk 0:00:17.2]} 75.
Kc4 {[%clk 0:00:11.1]} 75... Nc2 {[%clk 0:00:17.3]} 76. Kd3 {[%clk 0:00:11]}
76... Ne1+ {[%clk 0:00:16.7]} 77. Ke2 {[%clk 0:00:10.8]} 77... Ng2 {[%clk
0:00:16.8]} 78. Kf3 {[%clk 0:00:10.6]} 78... Nh4+ {[%clk 0:00:17]} 79. Ke4
{[%clk 0:00:10.1]} 79... Nf5 {[%clk 0:00:17.3]} 80. Bf8 {[%clk 0:00:08.7]} 80...
Kd7 {[%clk 0:00:15.7]} 81. Bd6 {[%clk 0:00:08.7]} 81... Nh6 {[%clk 0:00:14.4]}
82. Bf8 {[%clk 0:00:08.3]} 82... Nf7 {[%clk 0:00:14.5]} 83. Bd6 {[%clk
0:00:08.9]} 83... Nd8 {[%clk 0:00:14.5]} 84. Kd4 {[%clk 0:00:09.3]} 84... Nc6+
{[%clk 0:00:14.7]} 85. Kc4 {[%clk 0:00:09.8]} 85... Ke8 {[%clk 0:00:15.1]} 86.
Kd3 {[%clk 0:00:10.2]} 86... Kf7 {[%clk 0:00:15.4]} 87. Ke4 {[%clk 0:00:11.1]}
87... Kg6 {[%clk 0:00:15.8]} 88. Kf4 {[%clk 0:00:11.8]} 88... Nb4 {[%clk
0:00:12.8]} 89. Kg4 {[%clk 0:00:10.8]} 89... Nd3 {[%clk 0:00:11.6]} 90. a5
{[%clk 0:00:08.1]} 90... Nb2 {[%clk 0:00:11.1]} 91. Kf4 {[%clk 0:00:08.7]} 91...
Nd3+ {[%clk 0:00:10.2]} 92. Ke4 {[%clk 0:00:08]} 92... Nb4 {[%clk 0:00:10.5]}
93. Kf4 {[%clk 0:00:07]} 93... Nc6 {[%clk 0:00:11.1]} 94. Bc7 {[%clk 0:00:07.4]}
94... Kh5 {[%clk 0:00:10.3]} 95. Ke4 {[%clk 0:00:08.3]} 95... Kg4 {[%clk
0:00:10.3]} 96. Bb6 {[%clk 0:00:08.9]} 96... Kg5 {[%clk 0:00:09.5]} 97. Bc7
{[%clk 0:00:09.4]} 97... Kg6 {[%clk 0:00:09.8]} 98. Bb6 {[%clk 0:00:09.5]} 98...
Kf7 {[%clk 0:00:10]} 99. Bc7 {[%clk 0:00:09.6]} 99... Ke7 {[%clk 0:00:10.4]}
100. Bd6+ {[%clk 0:00:09.8]} 100... Kd7 {[%clk 0:00:10.7]} 101. Kd3 {[%clk
0:00:10.4]} 101... Nxa5 {[%clk 0:00:10.9]} 102. Kd4 {[%clk 0:00:10.4]} 102...
Nc6+ {[%clk 0:00:11]} 103. Kc4 {[%clk 0:00:10.9]} 103... Nd8 {[%clk 0:00:10.5]}
104. Kd4 {[%clk 0:00:10.8]} 104... Kc6 {[%clk 0:00:10.8]} 105. Be7 {[%clk
0:00:10]} 105... Nf7 {[%clk 0:00:10.8]} 106. Bh4 {[%clk 0:00:10.1]} 106... Nh6
{[%clk 0:00:08.5]} 107. Kc4 {[%clk 0:00:09.5]} 107... Nf5 {[%clk 0:00:08.9]}
108. Bf2 {[%clk 0:00:10]} 108... Ne7 {[%clk 0:00:09.1]} 109. Bg1 {[%clk
0:00:10.4]} 109... Kd7 {[%clk 0:00:09.3]} 110. Bd4 {[%clk 0:00:10.8]} 110... Nc6
{[%clk 0:00:09.4]} 111. Bb2 {[%clk 0:00:11.2]} 111... Ke7 {[%clk 0:00:09.7]}
112. Kd3 {[%clk 0:00:11.7]} 112... Kf7 {[%clk 0:00:10]} 113. Ke4 {[%clk
0:00:12.3]} 113... Kg6 {[%clk 0:00:10.3]} 114. Kf4 {[%clk 0:00:12.9]} 114... Kh5
{[%clk 0:00:10.3]} 115. Bc3 {[%clk 0:00:12.6]} 115... a5 {[%clk 0:00:10.3]} 116.
Bb2 {[%clk 0:00:12.5]} 116... a4 {[%clk 0:00:10.3]} 117. Ke4 {[%clk 0:00:12.9]}
117... Kg4 {[%clk 0:00:10.5]} 118. Kd3 {[%clk 0:00:13.1]} 118... Kf5 {[%clk
0:00:10.4]} 119. Kc4 {[%clk 0:00:13.5]} 119... Nxe5+ {[%clk 0:00:10.6]} 120. Kb5
{[%clk 0:00:14]} 120... Nd3 {[%clk 0:00:10.4]} 121. Ba3 {[%clk 0:00:13.2]}
121... Ke4 {[%clk 0:00:10.4]} 122. Kb6 {[%clk 0:00:13.6]} 122... Kd4 {[%clk
0:00:10.7]} 123. Kb5 {[%clk 0:00:12.5]} 123... e5 {[%clk 0:00:09.9]} 124. Kxa4
{[%clk 0:00:12.9]} 124... Nxc5+ {[%clk 0:00:09.6]} 125. Kb4 {[%clk 0:00:13.3]}
125... Nd7 {[%clk 0:00:09.4]} 126. Bb2+ {[%clk 0:00:12.9]} 126... Kd5 {[%clk
0:00:08]} 127. Kc3 {[%clk 0:00:11.7]} 127... e4 {[%clk 0:00:08.3]} 128. Ba3
{[%clk 0:00:11.7]} 128... Ne5 {[%clk 0:00:08.2]} 129. Bc1 {[%clk 0:00:12.6]}
129... Nc4 {[%clk 0:00:07.9]} 130. Bh6 {[%clk 0:00:12.5]} 130... Nd6 {[%clk
0:00:07.8]} 131. Bg7 {[%clk 0:00:11.8]} 131... Nf5 {[%clk 0:00:07.6]} 132. Bf6
{[%clk 0:00:11.7]} 132... Nd6 {[%clk 0:00:05.5]} 133. Bg5 {[%clk 0:00:11.3]}
133... Nc4 {[%clk 0:00:05.7]} 134. Kb4 {[%clk 0:00:11.2]} 134... Nd6 {[%clk
0:00:04]} 135. Be3 {[%clk 0:00:10.5]} 135... Kc6 {[%clk 0:00:03.3]} 136. Kc3
{[%clk 0:00:10.3]} 136... Kd5 {[%clk 0:00:03.6]} 137. Bf2 {[%clk 0:00:10.2]}
137... Nf5 {[%clk 0:00:04.2]} 138. Kb4 {[%clk 0:00:09.3]} 138... Nd4 {[%clk
0:00:04]} 139. Kc3 {[%clk 0:00:08.9]} 139... Nf3 {[%clk 0:00:03.6]} 140. Kb4
{[%clk 0:00:08.9]} 140... Ne5 {[%clk 0:00:04.1]} 141. Kb5 {[%clk 0:00:08.9]}
141... Nc4 {[%clk 0:00:04.4]} 142. Bg1 {[%clk 0:00:08.3]} 142... Nd6+ {[%clk
0:00:03.2]} 143. Kb6 {[%clk 0:00:08.1]} 143... Kc4 {[%clk 0:00:03.6]} 144. Kc7
{[%clk 0:00:08.1]} 144... Nf5 {[%clk 0:00:03]} 145. Kxb7 {[%clk 0:00:08.5]}
145... Kd3 {[%clk 0:00:03.6]} 146. Kc6 {[%clk 0:00:09]} 146... Nd4+ {[%clk
0:00:03.9]} 147. Kd5 {[%clk 0:00:09]} 147... Nf3 {[%clk 0:00:04.3]} 148. Bf2
{[%clk 0:00:08.7]} 148... Nd2 {[%clk 0:00:04.4]} 149. Ke5 {[%clk 0:00:08]}
149... Nb1 {[%clk 0:00:04.6]} 150. Kf4 {[%clk 0:00:08.3]} 150... Nc3 {[%clk
0:00:05.1]} 151. Ba7 {[%clk 0:00:08.7]} 151... Nd5+ {[%clk 0:00:05.1]} 152. Kg3
{[%clk 0:00:08.6]} 152... Ne3 {[%clk 0:00:05.5]} 153. Kf2 {[%clk 0:00:08.8]}
153... Nc4 {[%clk 0:00:05.8]} 154. Bc5 {[%clk 0:00:08.3]} 154... Ne5 {[%clk
0:00:04.5]} 155. Ba7 {[%clk 0:00:08.7]} 155... Nf3 {[%clk 0:00:04.8]} 156. Kg3
{[%clk 0:00:08.8]} 156... Ng5 {[%clk 0:00:05.2]} 157. Kf4 {[%clk 0:00:08.9]}
157... Ne6+ {[%clk 0:00:05.7]} 158. Ke5 {[%clk 0:00:09.2]} 158... Nc7 {[%clk
0:00:05.9]} 159. Kf4 {[%clk 0:00:09]} 159... Nb5 {[%clk 0:00:06]} 160. Bb6
{[%clk 0:00:08.4]} 160... Nd4 {[%clk 0:00:06.4]} 161. Kg3 {[%clk 0:00:07]}
161... e3 {[%clk 0:00:06.6]} 162. Bc5 {[%clk 0:00:05.3]} 162... e2 {[%clk
0:00:05.6]} 163. Kf2 {[%clk 0:00:06.2]} 163... Nc2 {[%clk 0:00:05.8]} 164. Bb4
{[%clk 0:00:01.6]} 164... Nxb4 {[%clk 0:00:05.7]} 165. Ke1 {[%clk 0:00:02.2]}
165... Nc2+ {[%clk 0:00:06.1]} 166. Kf2 {[%clk 0:00:03.1]} 0-1